bitfinex-derivatives/quotes_BTCF0:USTF0_20241025
["timestamp","ask_amount","ask_price","bid_price","bid_amount"]
[1729825658610,0.073421,68131.0,68130.0,0.12196799]
[1729825660614,0.073421,68131.0,68130.0,0.08916799]
[1729825663507,0.073421,68131.0,68130.0,0.08917342]
[1729825668420,0.412114,68132.0,68130.0,0.08929387]
[1729825668628,0.484173,68132.0,68131.0,0.08931879]
[1729825674916,0.484173,68132.0,68131.0,0.17645215]
[1729825675424,0.484173,68132.0,68131.0,0.08931879]
[1729825678221,0.484173,68132.0,68131.0,0.089335]
[1729825680329,0.484173,68132.0,68131.0,0.162756]
[1729825680826,0.484173,68132.0,68131.0,0.24988936]
[1729825680827,0.434219,68132.0,68131.0,0.24988936]
[1729825681032,0.484173,68132.0,68131.0,0.17646836]
[1729825681522,0.484173,68132.0,68131.0,0.089335]
[1729825683736,0.534127,68132.0,68131.0,0.089335]
[1729825684038,0.484173,68132.0,68131.0,0.17692965]
[1729825684333,0.484173,68132.0,68131.0,0.089335]
[1729825685530,0.484173,68132.0,68131.0,0.17692965]
[1729825685731,0.484173,68132.0,68131.0,0.089335]
[1729825691149,0.484173,68132.0,68131.0,0.08926101]
[1729825691541,0.484173,68132.0,68131.0,0.17685566]
[1729825691948,0.484173,68132.0,68131.0,0.08926101]
[1729825692340,0.484173,68132.0,68131.0,0.17685566]
[1729825693653,0.484173,68132.0,68131.0,0.08926101]
[1729825694437,0.484173,68132.0,68131.0,0.17685566]
[1729825695845,0.484173,68132.0,68131.0,0.08926101]
[1729825696050,0.484173,68132.0,68131.0,0.17685566]
[1729825696649,0.484173,68132.0,68131.0,0.08926101]
[1729825697563,0.484173,68132.0,68131.0,0.08904566]
[1729825700751,0.484173,68132.0,68131.0,0.08907516]
[1729825703756,0.484173,68132.0,68131.0,0.17666981]
[1729825705160,0.484173,68132.0,68131.0,0.08907516]
[1729825705760,0.484173,68132.0,68131.0,0.08908342]
[1729825713865,0.073421,68131.0,68130.0,0.04377832]
[1729825714065,0.123375,68131.0,68130.0,0.04377832]
[1729825717556,0.073421,68131.0,68130.0,0.04377832]
[1729825717757,0.3608,68140.0,68130.0,0.099908]
[1729825717962,0.3608,68140.0,68138.0,0.123367]
[1729825717963,0.434211,68140.0,68138.0,0.123367]
[1729825718169,0.049954,68140.0,68139.0,0.142312]
[1729825718770,0.073408,68143.0,68139.0,0.142312]
[1729825718959,0.049954,68140.0,68139.0,0.142312]
[1729825719158,0.099908,68140.0,68139.0,0.142312]
[1729825720769,0.173319,68140.0,68139.0,0.23096755]
[1729825721069,0.173319,68140.0,68139.0,0.15755555]
[1729825721569,0.173319,68140.0,68139.0,0.17440741]
[1729825721765,0.173319,68140.0,68139.0,0.24781941]
[1729825725167,0.173319,68140.0,68139.0,0.32063812]
[1729825725366,0.173319,68140.0,68139.0,0.24781941]
[1729825727459,0.173319,68140.0,68139.0,0.320625]
[1729825728766,0.21760031,68140.0,68139.0,0.15916386]
[1729825728973,0.57840031,68140.0,68139.0,0.01685186]
[1729825729166,0.55630957,68140.0,68132.0,0.0351]
[1729825729371,0.123372,68133.0,68132.0,0.0351]
[1729825729569,0.16765331,68133.0,68132.0,0.0351]
[1729825729969,0.16728937,68133.0,68132.0,0.0351]
[1729825730273,0.16728937,68133.0,68132.0,0.0517874]
[1729825734975,0.16727831,68133.0,68132.0,0.0517874]
[1729825735778,0.123372,68133.0,68132.0,0.14526668]
[1729825738772,0.123372,68133.0,68132.0,0.14067504]
[1729825739575,0.123372,68133.0,68132.0,0.14056286]
[1729825740474,0.484172,68133.0,68132.0,0.14056286]
[1729825740781,0.534126,68133.0,68132.0,0.17839706]
[1729825741078,0.049954,68132.0,68131.0,0.07285283]
[1729825741382,0.173327,68132.0,68131.0,0.07285283]
[1729825742080,0.123373,68132.0,68131.0,0.07285283]
[1729825745586,0.123373,68132.0,68131.0,0.09017433]
[1729825746477,0.073419,68132.0,68131.0,0.09017433]
[1729825746683,0.123373,68132.0,68131.0,0.09017433]
[1729825746978,0.123373,68132.0,68131.0,0.17916224]
[1729825747182,0.123373,68132.0,68131.0,0.17917741]
[1729825747385,0.123373,68132.0,68131.0,0.09017433]
[1729825747790,0.123373,68132.0,68131.0,0.0173215]
[1729825748084,0.123373,68132.0,68130.0,0.07285283]
[1729825748085,0.123375,68131.0,68130.0,0.07285283]
[1729825748288,0.123375,68131.0,68130.0,0.16184842]
[1729825748671,0.123375,68131.0,68130.0,0.07285283]
[1729825749075,0.123375,68131.0,68130.0,0.16186037]
[1729825750676,0.123375,68131.0,68130.0,0.07285283]
[1729825750891,0.073423,68129.0,68128.0,0.06068465]
[1729825751193,0.36176,68133.0,68128.0,0.06068465]
[1729825751486,0.073419,68132.0,68131.0,0.07342]
[1729825752883,0.073419,68132.0,68129.0,0.04372539]
[1729825752884,0.049954,68132.0,68129.0,0.04372539]
[1729825753093,0.073422,68130.0,68129.0,0.11714739]
[1729825755181,0.073422,68130.0,68129.0,0.073422]
[1729825755375,0.049954,68131.0,68130.0,0.073422]
[1729825755684,0.049954,68131.0,68130.0,0.07801373]
[1729825755878,0.049954,68131.0,68130.0,0.0853605]
[1729825757785,0.049954,68131.0,68130.0,0.12909574]
[1729825758488,0.123375,68131.0,68130.0,0.12909574]
[1729825758891,0.123375,68131.0,68130.0,0.17429149]
[1729825759092,0.123375,68131.0,68130.0,0.26188614]
[1729825759595,0.123375,68131.0,68130.0,0.25729441]
[1729825759895,0.123375,68131.0,68130.0,0.24994764]
[1729825761896,0.123375,68131.0,68130.0,0.16235299]
[1729825764294,0.049954,68131.0,68130.0,0.16694469]
[1729825764595,0.00096,68133.0,68132.0,0.073419]
[1729825764788,0.049954,68134.0,68133.0,0.073418]
[1729825764989,0.099908,68134.0,68133.0,0.33596505]
[1729825767698,0.099908,68134.0,68133.0,0.141018]
[1729825767892,0.099908,68134.0,68133.0,0.3352988]
[1729825768195,0.099908,68134.0,68133.0,0.3698988]
[1729825769702,0.099908,68134.0,68133.0,0.38183639]
[1729825770708,0.099908,68134.0,68133.0,0.37449018]
[1729825771006,0.099908,68134.0,68133.0,0.3698988]
[1729825771404,0.099908,68134.0,68133.0,0.38641783]
[1729825772601,0.099908,68134.0,68133.0,0.29775877]
[1729825772800,0.099908,68134.0,68133.0,0.38637046]
[1729825773000,0.173325,68134.0,68133.0,0.38637046]
[1729825773900,0.21770166,68134.0,68133.0,0.19213703]
[1729825777603,0.21771239,68134.0,68133.0,0.19213703]
[1729825778794,0.26925796,68134.0,68133.0,0.11871903]
[1729825778995,0.26925796,68134.0,68133.0,0.08411903]
[1729825779195,0.26925796,68134.0,68133.0,0.01651903]
[1729825779399,0.19584096,68134.0,68128.0,0.3608]
[1729825779604,0.123377,68129.0,68128.0,0.3608]
[1729825779804,0.16776439,68129.0,68128.0,0.3608]
[1729825780395,0.16776439,68129.0,68128.0,0.37812325]
[1729825780999,0.123377,68129.0,68128.0,0.57281112]
[1729825782304,0.123377,68129.0,68128.0,0.5728212]
[1729825782507,0.173331,68129.0,68128.0,0.5728212]
[1729825785105,0.173331,68129.0,68128.0,0.5774129]
[1729825785412,0.073423,68129.0,68128.0,0.5774129]
[1729825787198,0.073423,68129.0,68128.0,0.577375]
[1729825788708,0.073423,68129.0,68128.0,0.5727833]
[1729825788906,0.073423,68129.0,68128.0,0.37812325]
[1729825791295,0.173331,68129.0,68128.0,0.37812325]
[1729825791500,0.123377,68129.0,68128.0,0.37812325]
[1729825794004,0.123377,68129.0,68128.0,0.39006152]
[1729825794507,0.173331,68129.0,68128.0,0.39006152]
[1729825794709,0.173331,68129.0,68128.0,0.37812325]
[1729825795606,0.173331,68129.0,68128.0,0.39006182]
[1729825796005,0.173331,68129.0,68128.0,0.58434396]
[1729825797206,0.173331,68129.0,68128.0,0.11789573]
[1729825797207,0.223285,68129.0,68128.0,0.11789573]
[1729825797411,0.173331,68129.0,68128.0,0.11789573]
[1729825799006,0.173331,68129.0,68128.0,0.11330397]
[1729825799207,0.173331,68129.0,68128.0,0.10595716]
[1729825800514,0.073423,68129.0,68128.0,0.15591116]
[1729825800719,0.073423,68129.0,68128.0,0.20586516]
[1729825802713,0.073423,68129.0,68128.0,0.10595716]
[1729825804112,0.073423,68129.0,68128.0,0.06106775]
[1729825806311,0.073423,68129.0,68128.0,0.01732325]
[1729825806614,0.073423,68129.0,68128.0,0.0437445]
[1729825807313,0.073423,68129.0,68127.0,0.1171695]
[1729825811018,0.073423,68129.0,68128.0,0.0885994]
[1729825811217,0.073423,68129.0,68128.0,0.19420649]
[1729825811413,0.073423,68129.0,68128.0,0.26763049]
[1729825813514,0.049954,68130.0,68129.0,0.073423]
[1729825813822,0.049954,68130.0,68129.0,0.1620224]
[1729825814722,0.123376,68130.0,68129.0,0.1620224]
[1729825816229,0.00096,68135.0,68129.0,0.65501954]
[1729825816520,0.36176,68141.0,68136.0,0.073414]
[1729825816721,0.123367,68138.0,68137.0,0.0885994]
[1729825817926,0.123367,68138.0,68137.0,0.08849169]
[1729825818122,0.09442417,68138.0,68133.0,0.0329]
[1729825818423,0.411714,68141.0,68133.0,0.12332646]
[1729825818424,0.123371,68134.0,68133.0,0.12332646]
[1729825823323,0.049954,68134.0,68133.0,0.12332646]
[1729825823519,0.049954,68140.0,68133.0,0.04990846]
[1729825823728,0.073414,68138.0,68136.0,0.073415]
[1729825824323,0.00096,68141.0,68140.0,0.073411]
[1729825824518,0.049954,68155.0,68140.0,0.149862]
[1729825824721,0.073404,68147.0,68145.0,0.099908]
[1729825824935,0.049954,68145.0,68143.0,0.434207]
[1729825825124,0.049954,68145.0,68143.0,0.470607]
[1729825825326,0.049954,68144.0,68143.0,0.470607]
[1729825826228,0.049954,68144.0,68143.0,0.55876715]
[1729825826429,0.049954,68149.0,68143.0,0.48536015]
[1729825826626,0.099908,68150.0,68148.0,0.07274983]
[1729825827037,0.073401,68149.0,68148.0,0.07274983]
[1729825827233,0.073401,68149.0,68148.0,0.16085568]
[1729825827427,0.073401,68149.0,68148.0,0.08810585]
[1729825827632,0.073401,68149.0,68148.0,0.23415688]
[1729825828130,0.073398,68152.0,68149.0,0.073401]
[1729825828329,0.073398,68152.0,68150.0,0.049954]
[1729825828525,0.3618,68156.0,68152.0,0.073398]
[1729825828730,0.3618,68156.0,68155.0,0.099908]
[1729825828731,0.434194,68156.0,68155.0,0.099908]
[1729825829127,0.434194,68156.0,68155.0,0.049954]
[1729825829329,0.434194,68156.0,68155.0,0.173303]
[1729825829527,0.3608,68156.0,68155.0,0.208303]
[1729825830631,0.049954,68168.0,68155.0,0.208303]
[1729825830632,0.3608,68163.0,68155.0,0.269016]
[1729825830832,0.3608,68163.0,68162.0,0.173295]
[1729825831232,0.410754,68163.0,68162.0,0.13147591]
[1729825831433,0.410754,68163.0,68162.0,0.073387]
[1729825831934,0.3608,68163.0,68162.0,0.19851323]
[1729825832133,0.3608,68163.0,68162.0,0.19037832]
[1729825832538,0.3608,68163.0,68162.0,0.24839026]
[1729825833135,0.3608,68163.0,68162.0,0.19037832]
[1729825833835,0.049954,68168.0,68166.0,0.073382]
[1729825834031,0.049954,68168.0,68167.0,0.17329]
[1729825834341,0.484134,68169.0,68168.0,0.073381]
[1729825834342,0.3608,68169.0,68168.0,0.073381]
[1729825834554,0.3608,68169.0,68168.0,0.106481]
[1729825841153,0.40647089,68169.0,68168.0,0.106481]
[1729825842743,0.40647332,68169.0,68168.0,0.106481]
[1729825843535,0.45950742,68169.0,68168.0,0.106481]
[1729825843741,0.45950742,68169.0,68168.0,0.142781]
[1729825845547,0.53288742,68169.0,68168.0,0.142781]
[1729825848244,0.43418,68169.0,68168.0,0.142781]
[1729825852253,0.484134,68169.0,68168.0,0.106481]
[1729825852447,0.484134,68169.0,68168.0,0.073381]
[1729825852753,0.07339,68159.0,68158.0,0.108291]
[1729825853048,0.123344,68159.0,68158.0,0.073391]
[1729825853248,0.123344,68159.0,68158.0,0.09051388]
[1729825853852,0.173298,68159.0,68158.0,0.09051388]
[1729825854356,0.123344,68159.0,68158.0,0.09051388]
[1729825854855,0.123344,68159.0,68158.0,0.01712288]
[1729825855159,0.123344,68159.0,68157.0,0.410754]
[1729825855349,0.123344,68159.0,68157.0,0.42791567]
[1729825856252,0.123344,68159.0,68157.0,0.50130667]
[1729825856450,0.123344,68159.0,68157.0,0.54481398]
[1729825857554,0.123344,68159.0,68158.0,0.04350731]
[1729825858150,0.123344,68159.0,68158.0,0.11689831]
[1729825858554,0.123344,68159.0,68158.0,0.11706168]
[1729825858762,0.123344,68159.0,68158.0,0.073391]
[1729825859266,0.123344,68159.0,68158.0,0.11706156]
[1729825860552,0.123344,68159.0,68158.0,0.16701556]
[1729825861457,0.123344,68159.0,68157.0,0.42163223]
[1729825861458,0.073391,68158.0,68157.0,0.42163223]
[1729825861848,0.073391,68158.0,68157.0,0.06083223]
[1729825862055,0.073391,68158.0,68157.0,0.01716167]
[1729825862257,0.123347,68157.0,68156.0,0.04367056]
[1729825862458,0.123347,68157.0,68156.0,0.11706456]
[1729825863256,0.16878059,68157.0,68156.0,0.073394]
[1729825863450,0.28159858,68157.0,68156.0,0.073394]
[1729825864053,0.28159858,68157.0,68156.0,0.09034796]
[1729825864756,0.28159858,68157.0,68156.0,0.01695396]
[1729825865056,0.073394,68156.0,68154.0,0.123349]
[1729825865255,0.09818412,68155.0,68154.0,0.123349]
[1729825865458,0.09818412,68155.0,68154.0,0.073395]
[1729825865459,0.14808331,68155.0,68154.0,0.073395]
[1729825865756,0.28151098,68155.0,68154.0,0.073395]
[1729825865959,0.28151098,68155.0,68154.0,0.09009226]
[1729825870459,0.38079801,68155.0,68154.0,0.01669726]
[1729825870662,0.073399,68151.0,68150.0,0.3608]
[1729825870864,0.073399,68151.0,68147.0,0.073403]
[1729825870865,0.073402,68148.0,68147.0,0.073403]
[1729825871064,0.22118093,68148.0,68147.0,0.073403]
[1729825871253,0.123356,68148.0,68147.0,0.16272523]
[1729825871860,0.123356,68148.0,68147.0,0.08932223]
[1729825872057,0.123356,68148.0,68147.0,0.16272523]
[1729825872256,0.049954,68148.0,68147.0,0.09000382]
[1729825873064,0.123356,68148.0,68147.0,0.09000382]
[1729825873265,0.17331,68148.0,68147.0,0.09000382]
[1729825875672,0.17331,68148.0,68147.0,0.01660082]
[1729825875863,0.073405,68145.0,68144.0,0.07272141]
[1729825876063,0.173313,68145.0,68144.0,0.16064167]
[1729825876263,0.173313,68145.0,68143.0,0.12262526]
[1729825876465,0.173313,68145.0,68144.0,0.07272141]
[1729825877260,0.173313,68145.0,68143.0,0.19603226]
[1729825877669,0.173313,68145.0,68144.0,0.07272141]
[1729825878474,0.173313,68145.0,68143.0,0.04990385]
[1729825878676,0.123361,68144.0,68143.0,0.01650385]
[1729825878870,0.073416,68136.0,68132.0,0.073419]
[1729825879175,0.099908,68133.0,68132.0,0.073419]
[1729825879875,0.099908,68133.0,68130.0,0.0362]
[1729825880175,0.049954,68131.0,68130.0,0.12623407]
[1729825880370,0.049954,68132.0,68130.0,0.12623407]
[1729825881171,0.049954,68131.0,68130.0,0.12623407]
[1729825883066,0.049954,68132.0,68130.0,0.12623407]
[1729825883266,0.049954,68131.0,68130.0,0.12623407]
[1729825886061,0.049954,68132.0,68130.0,0.05281307]
[1729825886368,0.049954,68135.0,68132.0,0.073419]
[1729825886574,0.049954,68135.0,68134.0,0.099908]
[1729825888871,0.3608,68141.0,68134.0,0.099908]
[1729825889073,0.3608,68141.0,68140.0,0.099908]
[1729825889279,0.3608,68141.0,68140.0,0.13157129]
[1729825889468,0.3608,68141.0,68140.0,0.073411]
[1729825889779,0.36176,68155.0,68140.0,0.33419154]
[1729825889780,0.049954,68145.0,68140.0,0.33419154]
[1729825890075,0.049954,68145.0,68143.0,0.173315]
[1729825890380,0.049954,68145.0,68144.0,0.0335]
[1729825890675,0.3608,68147.0,68145.0,0.073405]
[1729825891064,0.049954,68146.0,68145.0,0.073405]
[1729825892372,0.049954,68146.0,68145.0,0.123359]
[1729825892966,0.049954,68146.0,68145.0,0.14034157]
[1729825895263,0.36176,68147.0,68145.0,0.14034157]
[1729825895572,0.36176,68147.0,68146.0,0.049954]
[1729825895573,0.410754,68147.0,68146.0,0.049954]
[1729825897070,0.410754,68147.0,68146.0,0.123358]
[1729825897377,0.049954,68151.0,68150.0,0.0734]
[1729825897577,0.435155,68155.0,68150.0,0.173308]
[1729825897779,0.049954,68153.0,68150.0,0.173308]
[1729825898090,0.049954,68152.0,68150.0,0.173308]
[1729825898780,0.049954,68152.0,68151.0,0.073399]
[1729825900282,0.123352,68152.0,68151.0,0.073399]
[1729825902281,0.123352,68152.0,68151.0,0.13160833]
[1729825907387,0.123352,68152.0,68151.0,0.073399]
[1729825910683,0.123352,68152.0,68151.0,0.08074324]
[1729825910884,0.3608,68155.0,68151.0,0.08074324]
[1729825910885,0.3608,68155.0,68154.0,0.073396]
[1729825911195,0.3608,68155.0,68154.0,0.173304]
[1729825911985,0.123343,68161.0,68158.0,0.073391]
[1729825912183,0.073389,68161.0,68160.0,0.460708]
[1729825913084,0.073385,68164.0,68162.0,0.073387]
[1729825913283,0.073385,68164.0,68163.0,0.049954]
[1729825913791,0.073385,68164.0,68163.0,0.173294]
[1729825914991,0.173293,68164.0,68163.0,0.073386]
[1729825916691,0.173293,68164.0,68163.0,0.173294]
[1729825917085,0.173293,68164.0,68163.0,0.18990295]
[1729825917884,0.073385,68164.0,68163.0,0.18990295]
[1729825918394,0.073385,68164.0,68163.0,0.23355867]
[1729825919197,0.36176,68168.0,68163.0,0.11651695]
[1729825919393,0.073383,68166.0,68165.0,0.16701251]
[1729825919688,0.073383,68166.0,68165.0,0.21696651]
[1729825919890,0.073383,68166.0,68165.0,0.173292]
[1729825921289,0.073383,68166.0,68165.0,0.18990771]
[1729825922401,0.123337,68166.0,68165.0,0.01661571]
[1729825922599,0.073384,68165.0,68164.0,0.05820763]
[1729825923488,0.073384,68165.0,68164.0,0.11706268]
[1729825924387,0.073384,68165.0,68164.0,0.13387296]
[1729825926095,0.049954,68170.0,68166.0,0.073383]
[1729825926295,0.049954,68170.0,68166.0,0.099908]
[1729825926296,0.049954,68169.0,68166.0,0.099908]
[1729825926494,0.073382,68167.0,68166.0,0.099908]
[1729825928501,0.049954,68167.0,68165.0,0.04367768]
[1729825928697,0.049954,68167.0,68164.0,0.01681028]
[1729825928698,0.049954,68165.0,68164.0,0.01681028]
[1729825928903,0.049954,68165.0,68163.0,0.04367768]
[1729825929102,0.049954,68164.0,68162.0,0.04367768]
[1729825929297,0.073386,68163.0,68162.0,0.04367768]
[1729825929497,0.12334,68163.0,68162.0,0.04367768]
[1729825930503,0.12334,68163.0,68161.0,0.06029449]
[1729825930504,0.073387,68162.0,68161.0,0.06029449]
[1729825931505,0.17204756,68162.0,68161.0,0.01661681]
[1729825931690,0.09866056,68162.0,68160.0,0.3608]
[1729825931895,0.073388,68161.0,68160.0,0.3608]
[1729825932091,0.22200256,68161.0,68160.0,0.37794634]
[1729825932401,0.27195656,68161.0,68160.0,0.37794634]
[1729825934102,0.27195656,68161.0,68160.0,0.45133534]
[1729825934998,0.27195656,68161.0,68160.0,0.37794634]
[1729825935395,0.33233156,68161.0,68160.0,0.37794634]
[1729825938708,0.173296,68161.0,68160.0,0.37794634]
[1729825947911,0.173296,68161.0,68160.0,0.01714634]
[1729825948107,0.099908,68161.0,68155.0,0.073394]
[1729825948311,0.049954,68156.0,68155.0,0.073394]
[1729825948512,0.123348,68156.0,68155.0,0.073394]
[1729825950415,0.16880582,68156.0,68155.0,0.08532744]
[1729825950622,0.16880582,68156.0,68155.0,0.10234165]
[1729825951315,0.16880582,68156.0,68155.0,0.09040821]
[1729825951719,0.16880582,68156.0,68155.0,0.01701421]
[1729825952020,0.16880582,68156.0,68154.0,0.3608]
[1729825952216,0.11885282,68155.0,68154.0,0.3608]
[1729825952622,0.11885282,68155.0,68154.0,0.37749302]
[1729825953116,0.11885282,68155.0,68154.0,0.45088902]
[1729825954415,0.073395,68155.0,68154.0,0.45088902]
[1729825958024,0.073395,68155.0,68154.0,0.46282259]
[1729825958222,0.073395,68155.0,68154.0,0.45547885]
[1729825961525,0.11883143,68155.0,68154.0,0.38208285]
[1729825961919,0.11883143,68155.0,68154.0,0.45547885]
[1729825966023,0.11883143,68155.0,68154.0,0.46006871]
[1729825968223,0.04542646,68155.0,68154.0,0.46006871]
[1729825969532,0.049954,68156.0,68154.0,0.65286184]
[1729825969829,0.049954,68156.0,68155.0,0.19279313]
[1729825970534,0.123348,68156.0,68155.0,0.19279313]
[1729825971528,0.123348,68156.0,68155.0,0.26618813]
[1729825972823,0.123348,68156.0,68155.0,0.27077799]
[1729825973023,0.123348,68156.0,68155.0,0.27077563]
[1729825974834,0.123348,68156.0,68155.0,0.26618577]
[1729825976440,0.123345,68159.0,68155.0,0.073395]
[1729825976638,0.123345,68159.0,68156.0,0.099908]
[1729825977438,0.123345,68159.0,68156.0,0.173301]
[1729825977837,0.049954,68159.0,68156.0,0.173301]
[1729825978031,0.073392,68158.0,68156.0,0.173301]
[1729825979841,0.073393,68157.0,68156.0,0.173301]
[1729825981140,0.073393,68157.0,68156.0,0.099908]
[1729825981345,0.049954,68159.0,68157.0,0.073392]
[1729825981738,0.073393,68157.0,68155.0,0.1729714]
[1729825981939,0.073393,68157.0,68156.0,0.073394]
[1729825983742,0.073393,68157.0,68155.0,0.1729714]
[1729825983743,0.049954,68159.0,68155.0,0.0730634]
[1729825983933,0.073394,68156.0,68155.0,0.1464574]
[1729825984657,0.12639688,68156.0,68155.0,0.073394]
[1729825984845,0.17204781,68156.0,68155.0,0.073394]
[1729825985047,0.16899893,68156.0,68155.0,0.073395]
[1729825985245,0.09560493,68156.0,68154.0,0.01669302]
[1729825985439,0.073396,68154.0,68152.0,0.0699]
[1729825985638,0.073396,68154.0,68149.0,0.0356]
[1729825985639,0.049954,68152.0,68149.0,0.0356]
[1729825985833,0.123354,68150.0,68149.0,0.0356]
[1729825986148,0.073403,68147.0,68144.0,0.073406]
[1729825986441,0.049954,68145.0,68144.0,0.073406]
[1729825986646,0.14856229,68145.0,68144.0,0.073406]
[1729825989142,0.049954,68144.0,68142.0,0.08715418]
[1729825989344,0.09786606,68143.0,68142.0,0.08715418]
[1729825991139,0.09786606,68143.0,68142.0,0.16056318]
[1729825991545,0.049954,68144.0,68142.0,0.3534079]
[1729825991751,0.049954,68144.0,68143.0,0.19284472]
[1729825994036,0.123361,68144.0,68143.0,0.19284472]
[1729825994236,0.123361,68144.0,68143.0,0.08820154]
[1729825994744,0.123361,68144.0,68143.0,0.17573836]
[1729825995855,0.123361,68144.0,68143.0,0.19325641]
[1729825996352,0.123361,68144.0,68143.0,0.08816596]
[1729825998045,0.123361,68144.0,68143.0,0.16111806]
[1729825998350,0.123361,68144.0,68143.0,0.0729521]
[1729825998541,0.123361,68144.0,68143.0,0.16126957]
[1729825999242,0.123361,68144.0,68143.0,0.16124882]
[1729825999442,0.049954,68144.0,68142.0,0.01685418]
[1729825999657,0.3608,68151.0,68141.0,0.0351]
[1729825999846,0.123363,68142.0,68141.0,0.0351]
[1729826000250,0.123363,68142.0,68141.0,0.0518911]
[1729826001549,0.073405,68146.0,68141.0,0.1752551]
[1729826001747,0.073405,68146.0,68145.0,0.099908]
[1729826002253,0.073405,68146.0,68143.0,0.073407]
[1729826002456,0.073405,68146.0,68145.0,0.099908]
[1729826005154,0.073405,68146.0,68145.0,0.173313]
[1729826006751,0.073405,68146.0,68145.0,0.334551]
[1729826008061,0.073405,68146.0,68145.0,0.2462651]
[1729826008855,0.073405,68146.0,68145.0,0.33455426]
[1729826009861,0.073405,68146.0,68145.0,0.26160216]
[1729826011867,0.073405,68146.0,68145.0,0.18819716]
[1729826015367,0.073405,68146.0,68145.0,0.20013285]
[1729826016375,0.073405,68146.0,68145.0,0.11184369]
[1729826018674,0.073405,68146.0,68145.0,0.099908]
[1729826018869,0.073405,68146.0,68145.0,0.11184371]
[1729826019467,0.073405,68146.0,68145.0,0.28783146]
[1729826019667,0.073405,68146.0,68145.0,0.20030462]
[1729826019868,0.3618,68159.0,68145.0,0.20030462]
[1729826020079,0.43419,68159.0,68158.0,0.049954]
[1729826020266,0.073393,68157.0,68153.0,0.073397]
[1729826020474,0.073395,68155.0,68154.0,0.12382434]
[1729826021074,0.073395,68155.0,68154.0,0.0358]
[1729826021075,0.11865834,68155.0,68154.0,0.0358]
[1729826021473,0.11865834,68155.0,68154.0,0.109196]
[1729826022267,0.11865834,68155.0,68154.0,0.142196]
[1729826023073,0.04526334,68155.0,68154.0,0.142196]
[1729826023380,0.073394,68156.0,68155.0,0.073395]
[1729826023572,0.073394,68156.0,68155.0,0.207603]
[1729826023877,0.11888533,68156.0,68155.0,0.207603]
[1729826024178,0.073394,68156.0,68155.0,0.207603]
[1729826027175,0.3608,68159.0,68155.0,0.134208]
[1729826027378,0.11889725,68158.0,68156.0,0.073393]
[1729826027576,0.073392,68158.0,68157.0,0.049954]
[1729826027772,0.11889724,68158.0,68157.0,0.049954]
[1729826028070,0.04550524,68158.0,68157.0,0.123347]
[1729826028273,0.3608,68159.0,68158.0,0.073391]
[1729826028470,0.3608,68166.0,68157.0,0.099908]
[1729826028771,0.3608,68173.0,68165.0,0.099908]
[1729826029083,0.3608,68173.0,68161.0,0.3608]
[1729826029084,0.434175,68173.0,68172.0,0.14369249]
[1729826029273,0.434175,68173.0,68172.0,0.14356427]
[1729826029876,0.434175,68173.0,68172.0,0.099908]
[1729826030282,0.434175,68173.0,68172.0,0.14354244]
[1729826031177,0.434175,68173.0,68172.0,0.099908]
[1729826031983,0.434175,68173.0,68172.0,0.14354244]
[1729826032181,0.434175,68173.0,68172.0,0.099908]
[1729826033473,0.434175,68173.0,68172.0,0.173284]
[1729826034076,0.3608,68173.0,68172.0,0.173284]
[1729826034282,0.073371,68177.0,68176.0,0.073371]
[1729826034584,0.073371,68177.0,68176.0,0.099908]
[1729826036186,0.073371,68177.0,68175.0,0.073373]
[1729826036187,0.11950773,68177.0,68175.0,0.06672906]
[1729826036389,0.16070071,68176.0,68175.0,0.06672906]
[1729826036577,0.16070071,68176.0,68175.0,0.16663706]
[1729826040183,0.09970363,68176.0,68175.0,0.16663706]
[1729826040587,0.15197466,68176.0,68175.0,0.16663706]
[1729826040788,0.09729163,68176.0,68175.0,0.16663706]
[1729826043083,0.15685166,68176.0,68175.0,0.16663706]
[1729826043884,0.09729163,68176.0,68175.0,0.16663706]
[1729826044082,0.15697903,68176.0,68175.0,0.16663706]
[1729826044283,0.073367,68181.0,68178.0,0.073369]
[1729826044490,0.073367,68181.0,68180.0,0.099908]
[1729826047189,0.073367,68181.0,68180.0,0.173276]
[1729826050398,0.073367,68181.0,68180.0,0.1905384]
[1729826051288,0.17153826,68181.0,68180.0,0.1905384]
[1729826051596,0.23159786,68181.0,68180.0,0.1905384]
[1729826052598,0.15823086,68181.0,68180.0,0.1905384]
[1729826052793,0.10548724,68181.0,68180.0,0.1905384]
[1729826053001,0.04542764,68181.0,68180.0,0.1905384]
[1729826053293,0.15823086,68181.0,68180.0,0.1905384]
[1729826053695,0.04542764,68181.0,68180.0,0.2904464]
[1729826053997,0.04542764,68181.0,68180.0,0.1905384]
[1729826054298,0.15823086,68181.0,68180.0,0.1905384]
[1729826054795,0.04542764,68181.0,68180.0,0.1905384]
[1729826055394,0.15823086,68181.0,68180.0,0.1905384]
[1729826055710,0.04542764,68181.0,68180.0,0.1905384]
[1729826056088,0.09817126,68181.0,68180.0,0.1905384]
[1729826057695,0.15823086,68181.0,68180.0,0.1905384]
[1729826057901,0.09817126,68181.0,68180.0,0.1905384]
[1729826058597,0.15915723,68181.0,68180.0,0.1905384]
[1729826059208,0.23420677,68184.0,68180.0,0.23417284]
[1729826059394,0.073364,68184.0,68183.0,0.099908]
[1729826061307,0.073364,68184.0,68183.0,0.173273]
[1729826064101,0.3618,68186.0,68185.0,0.073362]
[1729826064307,0.434161,68186.0,68185.0,0.073362]
[1729826066209,0.66500509,68186.0,68183.0,0.049954]
[1729826066508,0.434161,68186.0,68185.0,0.049954]
[1729826066806,0.66504848,68186.0,68185.0,0.123316]
[1729826067396,0.23088748,68186.0,68185.0,0.123316]
[1729826067600,0.15935104,68186.0,68185.0,0.123316]
[1729826068203,0.1570614,68186.0,68185.0,0.049954]
[1729826068407,0.1570614,68186.0,68185.0,0.123316]
[1729826068599,0.09744569,68186.0,68185.0,0.123316]
[1729826069003,0.1570614,68186.0,68185.0,0.123316]
[1729826071197,0.18353829,68186.0,68185.0,0.049954]
[1729826071503,0.07153644,68186.0,68185.0,0.123316]
[1729826072612,0.12392135,68186.0,68185.0,0.123316]